bitfinex/quotes_ETHUSD_20241130
["timestamp","ask_amount","ask_price","bid_price","bid_amount"]
[1732949798672,0.095,3698.7,3698.2,2.70401]
[1732949798832,0.095,3698.7,3697.8,0.9288]
[1732949798833,1.0303,3698.9,3698.8,2.70357]
[1732949799163,0.03398632,3698.6,3698.4,2.70385]
[1732949799369,1.0303,3698.9,3698.4,2.70385]
[1732949799731,0.03404394,3698.8,3698.4,2.70385]
[1732949800357,0.03404394,3698.8,3698.5,2.70379]
[1732949800358,0.095,3698.6,3698.5,2.70379]
[1732949801060,0.045,3698.8,3698.6,2.70371]
[1732949801445,0.045,3698.8,3698.7,2.70365]
[1732949801830,0.9353,3698.9,3698.7,2.70365]
[1732949802851,0.045,3699.0,3698.1,2.70409]
[1732949803028,2.59056369,3699.4,3697.8,0.9288]
[1732949803029,0.045,3699.4,3698.2,0.02703394]
[1732949803366,0.9803,3699.6,3699.2,2.70328]
[1732949803686,0.045,3699.6,3699.4,2.70308]
[1732949803828,0.045,3699.8,3699.3,2.7032]
[1732949804161,0.045,3699.6,3699.1,2.70334]
[1732949804323,0.03314352,3699.5,3698.9,2.70344]
[1732949804531,0.03314352,3699.5,3698.9,2.70348]
[1732949804866,0.045,3699.2,3698.9,2.70348]
[1732949805166,0.045,3699.2,3698.9,2.70344]
[1732949805343,0.03327499,3699.1,3698.9,2.70344]
[1732949805889,0.03327499,3699.1,3698.9,2.70343]
[1732949806070,0.96857499,3699.1,3698.1,0.9288]
[1732949806244,0.045,3698.9,3698.4,2.70386]
[1732949806445,0.045,3698.9,3698.1,0.9288]
[1732949806446,0.045,3698.9,3698.5,2.70379]
[1732949806746,0.045,3698.9,3698.8,2.70357]
[1732949807376,0.9803,3699.4,3699.0,2.7034]
[1732949807550,0.045,3699.2,3699.1,2.70336]
[1732949807748,0.07809354,3699.2,3698.9,2.70344]
[1732949807985,0.03309354,3699.2,3699.0,2.70341]
[1732949808189,0.03309354,3699.2,3699.1,2.70336]
[1732949808351,0.03309354,3699.2,3698.6,0.9921]
[1732949808546,0.29497345,3700.0,3698.9,2.7035]
[1732949808749,0.045,3699.9,3699.8,2.70278]
[1732949809052,0.0781444,3699.9,3699.8,2.70284]
[1732949809626,0.0331444,3699.9,3699.8,2.70284]
[1732949809765,0.0781444,3699.9,3699.8,2.70284]
[1732949809965,0.07483335,3699.9,3699.8,2.70284]
[1732949810788,0.07483335,3699.9,3699.7,2.70288]
[1732949811144,0.07483335,3699.9,3699.8,2.70284]
[1732949811348,0.07483335,3699.9,3699.6,2.70293]
[1732949811556,0.07483335,3699.9,3699.8,2.70284]
[1732949812461,0.02983335,3699.9,3699.8,2.70284]
[1732949812645,0.07483335,3699.9,3699.8,2.70284]
[1732949812851,0.045,3699.9,3699.6,2.70299]
[1732949813178,0.03016875,3699.8,3699.7,2.7029]
[1732949813887,0.045,3699.7,3699.6,2.70297]
[1732949814659,0.045,3699.7,3698.1,2.70405]
[1732949814660,1.0657,3699.7,3698.7,0.9921]
[1732949814894,1.0657,3699.7,3697.3,0.34241719]
[1732949814895,0.045,3699.5,3697.8,0.9921]
[1732949815100,0.045,3699.5,3699.3,2.70316]
[1732949815286,0.03011263,3699.4,3699.3,2.70316]
[1732949816004,0.03011263,3699.4,3699.2,2.70326]
[1732949816376,0.03011263,3699.4,3699.3,2.70321]
[1732949816799,0.03011263,3699.4,3699.1,2.70334]
[1732949817233,0.03011263,3699.4,3698.9,2.70345]
[1732949817512,0.045,3699.3,3698.9,2.70345]
[1732949817665,0.045,3699.3,3698.7,2.70363]
[1732949818010,0.045,3699.1,3698.2,2.70401]
[1732949818312,0.02957824,3699.0,3698.8,2.70356]
[1732949818665,0.02957824,3699.0,3698.9,2.7035]
[1732949818899,0.045,3699.1,3698.9,2.7035]
[1732949819099,0.02957824,3699.0,3698.9,2.7035]
[1732949820505,0.045,3699.1,3699.0,2.70343]
[1732949821208,0.07457845,3699.1,3699.0,2.70343]
[1732949821972,0.045,3699.1,3699.0,2.70343]
[1732949823005,0.045,3699.3,3699.0,2.70343]
[1732949823204,1.0657,3699.7,3699.4,2.70314]
[1732949823411,0.045,3699.5,3699.4,2.70314]
[1732949823570,0.045,3699.5,3699.2,2.70328]
[1732949823766,0.045,3698.1,3697.2,2.70474]
[1732949824002,0.02951884,3698.0,3697.2,2.70474]
[1732949824216,0.02951884,3698.0,3697.1,0.9508]
[1732949824217,0.02951884,3698.0,3697.6,2.70438]
[1732949824371,0.045,3698.1,3697.1,0.9508]
[1732949824571,0.045,3698.1,3697.8,2.70424]
[1732949824841,0.02939441,3698.0,3697.9,2.70419]
[1732949825038,0.02939441,3698.0,3697.8,2.70428]
[1732949826145,0.02939441,3698.0,3697.9,2.70423]
[1732949826339,0.045,3698.1,3697.9,2.70423]
[1732949826733,1.0173,3698.3,3698.1,2.70408]
[1732949826932,1.0173,3698.3,3697.6,2.70438]
[1732949826933,0.045,3698.1,3697.6,2.70438]
[1732949827177,0.045,3698.1,3697.8,2.70429]
[1732949827378,0.0293154,3698.0,3697.8,2.70429]
[1732949829356,0.0293154,3698.0,3697.9,2.70423]
[1732949831200,0.0293154,3698.0,3697.6,2.70444]
[1732949831502,0.0293154,3698.0,3697.6,2.70442]
[1732949832229,0.0293154,3698.0,3697.1,3.9508]
[1732949832230,0.045,3697.5,3696.7,0.9484]
[1732949832394,0.045,3697.9,3697.6,2.70445]
[1732949832601,0.045,3698.1,3698.0,2.70416]
[1732949833092,0.045,3698.1,3697.8,2.70427]
[1732949833388,0.045,3698.1,3697.9,2.70423]
[1732949834354,0.045,3697.9,3697.5,2.70451]
[1732949834555,0.045,3697.5,3697.3,2.70463]
[1732949834790,0.045,3697.5,3695.9,2.70565]
[1732949834791,0.045,3696.8,3695.9,0.9484]
[1732949834993,0.045,3696.8,3696.7,2.70506]
[1732949835153,0.045,3696.8,3696.5,2.7052]
[1732949835354,0.045,3696.8,3696.6,2.70511]
[1732949835683,0.045,3696.8,3696.7,2.70511]
[1732949835889,0.045,3696.8,3696.6,2.70512]
[1732949836300,0.045,3696.8,3696.0,2.70562]
[1732949836301,0.045,3696.8,3696.7,2.70511]
[1732949838022,0.045,3696.8,3695.9,3.9484]
[1732949838023,0.045,3697.1,3697.0,2.70489]
[1732949838191,0.045,3697.5,3697.4,2.7046]
[1732949838513,0.07385123,3697.5,3697.4,2.7046]
[1732949838913,0.045,3697.5,3697.4,2.7046]
[1732949839411,0.07385597,3697.5,3697.4,2.7046]
[1732949839917,0.045,3697.3,3697.2,2.70474]
[1732949840279,0.07390421,3697.3,3697.2,2.70474]
[1732949840986,0.07390421,3697.3,3697.0,0.2698]
[1732949840987,0.07390421,3697.3,3697.0,2.97469]
[1732949841187,0.07390421,3697.3,3697.0,0.2698]
[1732949841389,0.07390421,3697.3,3697.1,2.70481]
[1732949841698,0.07390421,3697.3,3697.0,2.97465]
[1732949842000,0.07390421,3697.3,3696.5,0.2698]
[1732949842329,0.07390421,3697.3,3697.0,2.70484]
[1732949842684,0.07390421,3697.3,3697.2,2.70474]
[1732949847145,0.02890421,3697.3,3697.2,2.70474]
[1732949847314,0.02890421,3697.3,3697.2,5.70474]
[1732949847517,0.045,3698.0,3697.4,2.70455]
[1732949847718,0.045,3698.0,3697.5,0.2698]
[1732949848038,0.02850972,3697.9,3697.6,2.70445]
[1732949848250,0.045,3697.6,3697.2,0.2698]
[1732949848551,0.045,3697.6,3697.1,2.70481]
[1732949848552,0.9342,3697.4,3697.1,2.70481]
[1732949848849,0.9342,3697.4,3697.3,2.70467]
[1732949849023,0.9342,3697.4,3697.2,2.70473]
[1732949849213,0.045,3697.3,3697.1,2.70476]
[1732949849414,0.045,3697.3,3697.2,2.70474]
[1732949849718,0.045,3697.3,3697.0,2.97465]
[1732949850738,0.02846356,3697.2,3697.0,2.97465]
[1732949851150,0.045,3697.3,3697.0,2.97465]
[1732949851358,0.02842578,3697.1,3697.0,2.97465]
[1732949851518,0.045,3697.3,3697.1,2.70476]
[1732949852232,0.045,3697.3,3697.2,2.70474]
[1732949852747,0.045,3697.3,3696.9,2.97474]
[1732949852947,0.045,3697.3,3696.9,0.2698]
[1732949853258,0.045,3697.3,3697.0,2.97468]
[1732949853662,0.045,3697.3,3697.1,2.70481]
[1732949854253,0.02843392,3697.2,3697.1,2.70481]
[1732949854463,0.045,3697.3,3697.1,2.70481]
[1732949854663,0.02844973,3697.2,3697.1,2.70481]
[1732949854956,0.045,3697.3,3697.1,2.70481]
[1732949855161,0.02844973,3697.2,3697.1,2.70481]
[1732949855523,0.045,3697.3,3697.1,2.70481]
[1732949855737,0.045,3697.3,3696.9,2.97476]
[1732949855965,0.045,3697.3,3697.0,2.70489]
[1732949857163,0.045,3697.0,3696.6,2.70513]
[1732949857372,3.385308,3697.3,3695.3,0.9919]
[1732949857373,0.045,3696.5,3695.3,0.9919]
[1732949857520,0.045,3696.5,3695.9,2.70564]
[1732949857941,0.045,3696.1,3695.9,2.70564]
[1732949858146,0.045,3696.1,3695.6,2.97567]
[1732949858364,0.9792,3696.1,3695.7,2.97558]
[1732949858549,0.045,3695.8,3695.7,0.2698]
[1732949858754,0.045,3695.8,3695.7,2.70584]
[1732949858937,0.045,3696.0,3695.3,0.9919]
[1732949859275,0.045,3695.7,3695.4,2.70604]
[1732949859573,0.045,3695.7,3695.5,2.70597]
[1732949860972,0.045,3695.7,3694.9,1.2617]
[1732949861271,0.045,3695.9,3695.7,2.70583]
[1732949861966,0.045,3695.9,3695.8,2.70577]
[1732949863033,0.045,3695.9,3695.6,2.70592]
[1732949863658,0.045,3695.7,3695.6,2.70592]
[1732949864173,0.045,3695.9,3695.8,2.70577]
[1732949864333,0.045,3696.3,3696.2,2.70548]
[1732949864668,0.045,3696.5,3696.4,2.70533]
[1732949864966,0.045,3696.5,3696.2,2.70547]
[1732949865181,0.045,3696.5,3696.1,2.70552]
[1732949865762,0.045,3696.5,3695.9,2.7057]
[1732949865763,0.045,3696.5,3696.2,2.70546]
[1732949866664,0.045,3696.5,3696.3,2.7054]
[1732949868030,0.2548159,3696.5,3696.0,2.70562]
[1732949868365,0.045,3696.1,3696.0,2.70562]
[1732949868532,0.045,3696.4,3696.0,2.70562]
[1732949869340,0.045,3695.9,3695.7,2.70579]
[1732949869630,0.045,3695.9,3695.8,2.70577]
[1732949872355,0.045,3696.1,3695.8,2.70577]
[1732949872556,0.045,3695.9,3695.7,0.2705]
[1732949872873,0.045,3695.9,3695.8,2.70577]
[1732949873769,0.045,3695.9,3695.7,0.2705]
[1732949873939,0.045,3695.9,3695.6,0.2705]
[1732949874139,1.0213,3696.2,3695.6,0.2705]
[1732949874140,0.045,3695.7,3695.6,0.2705]
[1732949874345,0.045,3695.7,3695.6,2.97642]
[1732949874857,0.07294625,3695.7,3695.6,2.70592]
[1732949875169,0.07294625,3695.7,3695.6,2.97642]
[1732949875668,0.07294625,3695.7,3695.6,2.70592]
[1732949876169,0.045,3695.7,3695.6,2.97642]
[1732949877073,0.045,3695.9,3695.8,2.70577]
[1732949877236,0.07291701,3695.9,3695.8,2.70577]
[1732949878132,0.02791701,3695.9,3695.8,2.70577]
[1732949878757,0.045,3696.1,3696.0,2.70562]
[1732949879240,0.045,3696.4,3696.3,2.7054]
[1732949880376,0.045,3696.5,3696.4,2.70533]
[1732949882281,0.07260746,3696.5,3696.4,2.70533]
[1732949883483,0.39917884,3697.3,3696.4,2.70533]
[1732949883484,0.045,3697.3,3697.2,2.70474]
[1732949883685,0.07177024,3697.3,3697.2,2.70474]
[1732949883850,0.07177024,3697.3,3697.1,2.70475]
[1732949884052,0.07177024,3697.3,3697.2,2.70474]
[1732949884251,0.28426317,3697.3,3697.2,2.70474]
[1732949884460,0.28426317,3697.3,3697.1,2.7048]
[1732949885359,0.28426317,3697.3,3695.4,2.10815904]
[1732949885360,0.045,3696.7,3695.5,0.2705]
[1732949885562,0.9439,3697.0,3695.6,2.70589]
[1732949885563,0.045,3696.3,3695.6,2.70589]
[1732949885760,0.9889,3696.3,3695.6,2.70589]
[1732949885946,0.02684594,3696.2,3695.8,2.70571]
[1732949886176,0.02684594,3696.2,3695.4,0.355203]
[1732949886390,0.9889,3696.3,3695.9,2.70567]
[1732949886594,0.02684572,3696.1,3695.9,2.70567]
[1732949886778,0.045,3696.0,3695.8,2.70572]
[1732949886960,0.045,3696.0,3695.6,0.2705]
[1732949886961,0.07175443,3696.0,3695.6,2.9764]
[1732949887308,0.045,3695.8,3695.6,2.9764]
[1732949887596,0.045,3695.8,3695.7,2.97634]
[1732949887895,0.045,3695.8,3695.7,2.70584]
[1732949888194,0.045,3696.0,3695.9,2.7057]
[1732949888776,0.9889,3696.3,3695.9,2.7057]
[1732949888971,0.045,3696.0,3695.9,2.9762]
[1732949889211,0.045,3696.0,3695.6,0.2705]
[1732949889519,0.045,3696.4,3696.3,0.2705]
[1732949890009,0.045,3696.1,3696.0,0.2705]
[1732949891388,0.045,3696.1,3695.8,0.2705]
[1732949891589,0.045,3695.9,3695.8,2.97627]
[1732949891988,0.045,3696.1,3695.8,2.97626]
[1732949892214,0.045,3696.1,3695.8,0.2705]
[1732949892377,0.045,3696.1,3696.0,2.97612]
[1732949893074,0.045,3696.1,3696.0,0.2705]
[1732949893306,0.07156573,3696.1,3696.0,2.97612]
[1732949894085,0.07156573,3696.1,3696.0,2.70562]
[1732949894316,0.045,3695.9,3695.8,2.70577]
[1732949894703,0.07155342,3695.9,3695.8,2.70577]
[1732949895285,0.02655342,3695.9,3695.8,2.70577]
[1732949895493,0.045,3695.9,3695.8,2.70577]
[1732949895678,0.045,3696.1,3696.0,2.70556]
[1732949896689,0.07158158,3696.1,3696.0,2.70556]
[1732949896889,0.02658158,3696.1,3696.0,2.70556]
[1732949897092,0.045,3696.1,3696.0,2.70556]
[1732949897414,0.045,3696.3,3696.2,2.70548]
[1732949897778,0.045,3696.1,3695.9,2.70563]
[1732949898678,0.045,3696.1,3696.0,2.70562]
[1732949899110,0.045,3696.3,3696.2,2.70548]
[1732949900333,0.07157407,3696.3,3696.2,2.70548]
[1732949904404,0.07157407,3696.3,3695.6,2.70585]
[1732949904405,0.07157407,3696.3,3696.1,2.70555]
[1732949904619,0.07157407,3696.3,3695.6,2.70592]
[1732949904835,0.07157407,3696.3,3696.1,2.70548]
[1732949905704,0.07157407,3696.3,3696.2,2.70548]
[1732949906003,0.07157407,3696.3,3696.0,2.7056]
[1732949906740,0.07157407,3696.3,3695.5,0.9435]
[1732949906904,0.07157407,3696.3,3696.2,2.70548]
[1732949907440,0.02657407,3696.3,3696.2,2.70548]
[1732949907744,0.045,3696.5,3696.2,2.70548]
[1732949907907,0.988,3696.9,3696.8,2.70504]
[1732949907908,0.045,3696.9,3696.8,2.70504]
[1732949908104,0.045,3697.1,3697.0,2.70489]
[1732949911346,0.07105798,3697.1,3697.0,2.70489]
[1732949914341,0.07105798,3697.1,3696.8,2.70504]
[1732949915008,0.07105798,3697.1,3696.6,2.70518]
[1732949915009,0.045,3696.8,3696.6,2.70518]
[1732949915205,0.045,3696.8,3696.6,2.70512]
[1732949915411,0.02603337,3696.7,3696.6,2.70512]
[1732949915831,0.045,3696.8,3696.6,2.70512]
[1732949916039,0.02603337,3696.7,3696.4,2.70532]
[1732949916242,0.02603337,3696.7,3696.5,2.70525]
[1732949916406,0.045,3696.8,3696.5,2.70525]
[1732949916603,0.02603316,3696.6,3696.3,2.7054]
[1732949916952,0.045,3696.6,3696.2,2.70541]
[1732949917325,0.02589435,3696.5,3695.9,0.947]
[1732949917522,0.02589435,3696.5,3696.3,2.7054]
[1732949918323,0.02589435,3696.5,3696.1,2.70555]
[1732949918526,0.02589435,3696.5,3696.2,2.70547]
[1732949918952,0.02589435,3696.5,3696.4,2.70533]
[1732949919255,0.02589435,3696.5,3695.9,0.947]
[1732949919256,0.02589435,3696.5,3696.2,2.70542]
[1732949919458,0.045,3696.3,3695.6,0.2705]
[1732949919760,0.02585488,3696.2,3695.9,2.70564]
[1732949920222,0.045,3696.3,3695.9,2.70564]
[1732949920426,0.02581231,3696.1,3696.0,2.70561]
[1732949920730,0.045,3696.3,3696.0,2.70561]
[1732949921135,0.02581055,3696.2,3695.8,2.70576]
[1732949921335,0.02581055,3696.2,3696.1,2.70555]
[1732949921541,0.045,3696.5,3696.4,2.70533]
[1732949922870,1.0174,3697.1,3696.2,0.947]
[1732949923054,0.02581287,3696.5,3696.4,2.70532]
[1732949923223,0.045,3697.1,3696.2,3.65242]
[1732949923429,0.045,3697.1,3696.2,0.947]
[1732949923729,0.045,3697.1,3696.8,2.70497]
[1732949923931,0.045,3697.1,3696.7,2.70504]
[1732949924149,0.045,3697.1,3696.2,0.947]
[1732949924336,3.12204,3697.1,3696.3,2.7054]
[1732949924642,0.045,3696.7,3696.6,2.70518]
[1732949924840,0.045,3696.7,3696.0,0.2705]
[1732949925041,0.045,3696.7,3696.6,2.70518]
[1732949925673,0.045,3696.9,3696.7,2.70505]
[1732949926021,0.045,3696.9,3696.8,2.70504]
[1732949926563,0.07097181,3696.9,3696.8,2.70504]
[1732949927655,0.045,3696.9,3696.8,2.70504]
[1732949927860,0.07097519,3696.9,3696.8,2.70504]
[1732949929079,0.02597519,3696.9,3696.8,2.70504]
[1732949929440,0.045,3697.1,3696.6,3.70977]
[1732949929641,0.02597541,3697.0,3696.6,2.70515]
[1732949929865,0.02597541,3697.0,3696.2,1.0046]
[1732949930188,0.02597541,3697.0,3696.3,2.7054]
[1732949930391,0.02597541,3697.0,3696.8,2.70501]
[1732949930545,0.02597541,3697.0,3696.9,2.70496]
[1732949931778,0.02597541,3697.0,3696.7,2.70505]
[1732949932288,0.02597541,3697.0,3696.8,2.70502]
[1732949932787,0.02597541,3697.0,3696.9,2.70496]
[1732949935187,0.02597541,3697.0,3696.7,2.70506]
[1732949935493,0.02597541,3697.0,3696.9,2.70496]
[1732949937783,0.045,3696.9,3696.3,0.2705]
[1732949937983,0.045,3696.9,3696.2,1.0046]
[1732949937984,0.045,3696.9,3696.5,2.70297967]
[1732949938183,0.02601655,3696.8,3696.5,2.70297967]
[1732949938490,0.045,3696.5,3696.4,2.70533]
[1732949938794,0.07099413,3696.5,3696.4,2.70533]
[1732949940049,0.045,3696.1,3696.0,2.70562]
[1732949941047,0.24993191,3696.8,3696.1,1.0046]
[1732949941292,0.045,3696.9,3696.8,2.70504]
[1732949941798,0.06988931,3696.9,3696.8,2.70504]
[1732949942872,0.02488931,3696.9,3696.8,2.70504]
[1732949943084,0.06988931,3696.9,3696.8,2.70504]
[1732949943290,0.045,3696.9,3696.8,2.70504]
[1732949943597,0.02488931,3696.9,3696.8,2.70504]
[1732949943748,0.06988931,3696.9,3696.8,2.70504]
[1732949943952,0.045,3696.9,3696.8,2.70504]
[1732949944169,0.07016684,3696.9,3696.8,2.70504]
[1732949949402,0.07016684,3696.9,3696.6,2.70513]
[1732949949599,0.045,3696.7,3696.5,2.70524]
[1732949950092,0.02514759,3696.6,3696.5,2.70524]
[1732949950251,0.045,3696.7,3696.6,2.70518]
[1732949950452,0.045,3696.7,3696.5,2.70524]
[1732949950690,0.07013594,3696.7,3696.5,2.70524]
[1732949951078,0.07013594,3696.7,3696.3,2.7054]
[1732949951079,0.07013594,3696.7,3696.6,2.70518]
[1732949951392,0.07013594,3696.7,3696.4,2.70528]
[1732949951898,0.07013594,3696.7,3696.1,1.0046]
[1732949951899,0.07013594,3696.7,3696.5,2.70525]
[1732949952091,0.07013594,3696.7,3696.6,2.70518]
[1732949952663,0.045,3696.7,3696.6,2.70518]
[1732949952867,0.045,3696.7,3696.1,1.0046]
[1732949953069,0.045,3696.7,3696.6,2.70518]
[1732949954967,0.045,3697.2,3696.7,0.9466]
[1732949955168,0.045,3697.2,3697.1,2.70482]
[1732949957602,0.06931753,3697.2,3697.1,2.70482]
[1732949957779,0.045,3697.2,3697.1,2.70482]
[1732949959721,0.06931753,3697.2,3697.1,2.70482]
[1732949959874,0.06931753,3697.2,3696.8,2.70501]
[1732949960077,0.40426599,3697.2,3696.8,2.70501]
[1732949960291,0.045,3696.9,3696.8,2.70501]
[1732949960485,0.06931293,3696.9,3696.8,2.70501]
[1732949963116,0.02431293,3696.9,3696.8,3.65161]
[1732949963426,0.045,3697.1,3697.0,2.70489]
[1732949964343,0.045,3697.3,3697.1,2.70475]
[1732949964501,0.045,3697.3,3697.2,2.70474]
[1732949966308,1.55988384,3697.6,3697.2,2.70474]
[1732949966495,0.42642038,3697.5,3697.2,2.70474]
[1732949967019,0.0242803,3697.4,3697.2,2.70474]
[1732949967196,1.55988384,3697.6,3697.2,2.70474]
[1732949967399,0.02428008,3697.3,3697.2,2.70474]
[1732949967638,0.9135191,3697.3,3697.0,2.70489]
[1732949967807,0.93779918,3697.3,3697.0,2.70489]
[1732949968641,0.93779918,3697.3,3696.8,2.70502]
[1732949968936,0.93779918,3697.3,3697.0,2.70487]
[1732949969842,0.93779918,3697.3,3696.8,2.70502]
[1732949970056,1.15124997,3697.3,3696.8,2.70502]
[1732949970746,3.85593997,3697.3,3696.7,2.70506]
[1732949971044,0.23773087,3697.3,3696.7,2.70511]
[1732949971965,0.23773087,3697.3,3696.9,2.70491]
[1732949972459,0.23773087,3697.3,3696.8,2.70498]
[1732949973258,0.4406124,3697.2,3696.8,2.70498]
[1732949973462,0.46490097,3697.2,3696.8,2.70498]
[1732949973628,5.41050217,3697.1,3696.5,2.70524]
[1732949973823,5.1611491,3697.1,3696.5,2.70524]
[1732949974157,0.60823824,3697.0,3696.5,2.70524]
[1732949975233,0.9135191,3696.8,3696.1,2.97598]
[1732949975435,3.6185691,3696.8,3696.2,2.70545]
[1732949975740,0.9928,3696.6,3696.2,2.70545]
[1732949976064,0.55,3696.5,3696.0,2.70557]
[1732949976268,0.55,3696.5,3695.7,1.2796]
[1732949976269,1.48772887,3696.5,3695.8,2.70576]
[1732949976466,1.48772887,3696.5,3696.1,2.70554]
[1732949977022,0.9135191,3696.2,3695.5,2.70598]
[1732949977221,0.9135191,3696.2,3695.4,2.70606]
[1732949977222,0.9135191,3695.9,3695.4,2.70606]
[1732949977634,0.0241468,3695.8,3695.4,2.70606]
[1732949978525,0.0241468,3695.8,3695.7,2.70584]
[1732949978757,0.0241468,3695.8,3695.7,3.71494]
[1732949978956,0.79218502,3696.4,3695.7,3.71494]
[1732949978957,0.54354532,3696.4,3696.3,2.7054]
[1732949979132,0.9135191,3696.9,3696.7,2.70504]
[1732949979462,0.9135191,3696.9,3696.6,2.70513]
[1732949979662,0.9928,3697.1,3696.2,1.0091]
[1732949979850,0.9135191,3697.4,3696.9,2.70491]
[1732949980068,1.27531001,3697.4,3696.9,2.70491]
[1732949980367,1.27531001,3697.4,3697.2,2.70468]
[1732949980568,0.9135191,3697.4,3697.2,2.70468]
[1732949980928,0.9928,3697.5,3697.0,2.70486]
[1732949981839,0.02380322,3697.4,3696.6,2.70514]
[1732949982040,0.02380322,3697.4,3696.7,2.70507]
[1732949982243,0.02380322,3697.4,3697.1,2.70481]
[1732949983728,0.02380322,3697.4,3696.5,1.0091]
[1732949983953,0.02380322,3697.4,3696.8,2.70497]
[1732949984154,0.02380322,3697.4,3696.8,2.70499]
[1732949984371,0.9928,3697.3,3696.6,2.70518]
[1732949984529,0.02428066,3697.2,3696.7,2.70505]
[1732949985042,2.72903066,3697.2,3696.5,2.70525]
[1732949985240,0.02428066,3697.2,3696.5,2.70525]
[1732949985442,0.02428066,3697.2,3696.7,2.70506]
[1732949985643,0.02428066,3697.2,3696.8,2.70503]
[1732949985895,0.9928,3697.3,3696.7,2.7051]
[1732949986063,0.02409095,3697.1,3696.9,2.70491]
[1732949986367,0.9928,3697.3,3696.9,2.70491]
[1732949986872,0.02409116,3697.2,3696.9,2.70491]
[1732949987173,0.95684523,3697.3,3696.2,3.71458]
[1732949987373,0.95684523,3697.3,3696.7,2.70507]
[1732949988253,0.95684523,3697.3,3696.8,2.70503]
[1732949988560,0.95684523,3697.3,3696.9,2.70494]
[1732949990745,0.95684523,3697.3,3697.1,2.70481]
[1732949990963,2.05528126,3697.4,3697.1,2.70481]
[1732949991850,2.05528126,3697.4,3697.2,2.70473]
[1732949993385,2.05528126,3697.4,3697.3,2.70467]
[1732949993612,2.70402,3698.2,3697.4,2.70454]
[1732949993613,0.9695,3698.0,3697.4,2.70454]
[1732949993965,0.9695,3698.4,3698.2,2.70397]
[1732949994082,0.9695,3698.4,3698.0,2.70416]
[1732949994482,0.9695,3698.4,3698.1,2.70403]
[1732949994794,0.9695,3698.4,3698.2,2.704]
[1732949995114,0.9695,3698.4,3698.3,2.70394]
[1732949995285,0.9695,3698.4,3698.1,2.70408]
[1732949995482,0.55308566,3698.5,3697.7,2.73142082]
[1732949995712,0.9838,3698.9,3698.4,2.70387]
[1732949996220,0.9838,3698.9,3698.6,2.70366]
[1732949996521,0.9838,3698.9,3698.7,2.70365]
[1732949997219,0.9838,3698.9,3698.5,2.70376]
[1732949997420,0.9838,3698.9,3698.7,2.70364]
[1732949997925,0.9838,3698.9,3698.5,2.70376]
[1732949998281,0.9838,3698.9,3697.9,0.2705]
[1732949998483,5.74208126,3699.6,3698.9,2.70346]
[1732949998800,0.27697918,3699.5,3699.0,2.70342]
[1732949998998,0.54009735,3699.1,3699.0,2.70342]
[1732949999325,0.54009735,3699.1,3698.7,2.70364]
[1732949999546,0.54009735,3699.1,3698.9,2.70343]
[1732949999828,0.54009735,3699.1,3699.0,2.70343]
[1732950000009,0.54009735,3699.1,3698.6,2.70372]
[1732950000389,0.54009735,3699.1,3699.0,2.70343]
[1732950001089,0.54009735,3699.1,3698.8,2.70354]
[1732950001398,0.54009735,3699.1,3698.8,5.40706]
[1732950001598,0.54009735,3699.1,3698.8,2.70352]
[1732950001799,0.54009735,3699.1,3699.0,2.70343]
[1732950002287,0.27697918,3699.5,3699.3,2.70321]
[1732950002486,0.27697918,3699.5,3699.4,2.70314]
[1732950002687,2.05528126,3699.8,3699.5,2.70306]
[1732950003423,2.05528126,3699.8,3698.7,2.70359]
[1732950003424,2.05528126,3699.8,3699.3,2.70321]
[1732950003626,0.03378835,3699.7,3699.0,2.70339]
[1732950003926,0.03378835,3699.7,3699.3,2.70318]
[1732950004135,2.05528126,3699.8,3699.3,2.70318]
[1732950004431,0.57418013,3699.7,3699.3,2.70318]
[1732950004727,0.55019865,3699.6,3699.3,2.70318]
[1732950005431,2.05528126,3699.4,3698.5,0.97]
[1732950005720,0.9838,3699.3,3698.5,0.97]
[1732950006021,0.9838,3699.3,3698.6,2.70372]
[1732950006548,0.03379103,3699.2,3698.5,2.70378]
[1732950006713,0.03379103,3699.2,3698.1,0.97]
[1732950006714,2.05528126,3699.0,3698.1,0.97]
[1732950007067,2.05528126,3699.0,3698.4,2.70385]
[1732950007342,2.05528126,3699.0,3698.5,2.70377]
[1732950007527,1.34610709,3699.3,3698.5,2.70377]
[1732950007708,1.34610709,3699.3,3698.7,2.70364]
[1732950007905,0.34013884,3699.2,3698.7,2.70364]
[1732950008103,0.34013884,3699.2,3698.5,2.70377]
[1732950008737,0.34013884,3699.2,3698.6,2.70365]
[1732950009100,0.34013884,3699.2,3698.9,2.70343]
[1732950009319,1.34610709,3699.3,3698.9,2.7035]
[1732950009539,2.05528126,3699.4,3698.9,2.7035]
[1732950009738,1.56959865,3699.6,3699.2,2.70323]
[1732950010040,1.56959865,3699.6,3699.0,2.70337]
[1732950010541,1.56959865,3699.6,3698.8,3.71146]
[1732950010703,1.56959865,3699.6,3699.0,2.70338]
[1732950010898,1.56959865,3699.6,3698.8,3.71146]
[1732950010899,2.05528126,3699.4,3698.6,2.70371]
[1732950011347,2.05528126,3699.4,3698.8,2.70356]
[1732950012327,2.05528126,3699.4,3698.9,2.7035]
[1732950012905,2.05528126,3699.4,3698.7,2.70362]
[1732950013105,2.05528126,3699.4,3698.2,1.0079]
[1732950013106,2.08907338,3699.4,3698.2,1.0079]
[1732950013441,3.72276,3699.1,3698.2,3.71191]
[1732950013618,0.03379238,3699.0,3698.4,2.70385]